fUSD/lending_fUSD_20260603
["ID","MTS","AMOUNT","RATE_DAILY","PERIOD"]
[423937964,1780501832000,-170.07902594,0.000301,2]
[423937966,1780501832000,-159.31721353,0.00030525,30]
[423937967,1780501832000,-158.0,0.00030525,30]
[423937962,1780501832000,-182.40916939,0.00029927,2]
[423937965,1780501832000,-592.31,0.00030492,7]
[423937963,1780501832000,-166.49,0.00030038,2]
[423937969,1780501832000,-205.21700765,0.00030832,2]
[423937971,1780501832000,-221.14730905,0.00030833,2]
[423937970,1780501832000,-190.80875387,0.00030832,2]
[423937972,1780501832000,-211.14951321,0.00030833,2]
[423937980,1780501832000,-163.79624137,0.00031525,30]
[423937973,1780501832000,-165.29878215,0.00030833,2]
[423937981,1780501832000,-179.24191387,0.0003164,36]
[423937977,1780501832000,-1000.0,0.000312,7]
[423937978,1780501832000,-538.5,0.00031443,14]
[423937979,1780501832000,-158.0,0.00031525,30]
[423937982,1780501832000,-2992.54192,0.000319,60]
[423937974,1780501832000,-934.44322521,0.00030911,2]
[423937976,1780501832000,-213.01920409,0.00031191,30]
[423937975,1780501832000,-379.8925113,0.00030911,2]
[423937984,1780501832000,-152.0,0.00032261,3]
[423937983,1780501832000,-166.66,0.00032029,30]
[423937985,1780501832000,-481.52,0.00032394,14]
[423937958,1780501832000,-170.07902594,0.000298,2]
[423937955,1780501832000,-157.0,0.00029526,30]
[423937930,1780501832000,-500.0,0.000275,7]
[423937953,1780501832000,-164.0,0.00029526,30]
[423937956,1780501832000,-619.56,0.00029541,7]
[423937926,1780501832000,-1044.3,0.00027397,10]
[423937933,1780501832000,-170.5,0.00027718,2]
[423937932,1780501832000,-170.5,0.00027718,2]
[423937931,1780501832000,-170.5,0.00027718,2]
[423937925,1780501832000,-1500.0,0.00027397,2]
[423937927,1780501832000,-1630.51,0.00027397,10]
[423937935,1780501832000,-934.44322521,0.00027795,2]
[423937945,1780501832000,-1358.76,0.00029515,10]
[423937934,1780501832000,-170.5,0.00027718,2]
[423937937,1780501832000,-166.49,0.00027911,2]
[423937940,1780501832000,-653.43,0.0002859,7]
[423937936,1780501832000,-379.8925113,0.00027795,2]
[423937928,1780501832000,-178.75,0.000274,7]
[423937942,1780501832000,-599.56,0.00028971,30]
[423937943,1780501832000,-934.44322521,0.00029353,2]
[423937954,1780501832000,-164.0,0.00029526,30]
[423937952,1780501832000,-158.0,0.00029525,30]
[423937947,1780501832000,-155.0,0.00029525,30]
[423937949,1780501832000,-158.0,0.00029525,30]
[423937948,1780501832000,-156.0,0.00029525,30]
[423937951,1780501832000,-159.0,0.00029525,30]
[423937946,1780501832000,-37.42227967,0.00029525,30]
[423937941,1780501832000,-356.83,0.00028703,2]
[423937939,1780501832000,-179.24191387,0.0002811,26]
[423937944,1780501832000,-379.8925113,0.00029353,2]
[423937950,1780501832000,-157.0,0.00029525,30]
[423937938,1780501832000,-150.0,0.00027973,2]
[423938000,1780501833000,-328.04,0.00034296,14]
[423938002,1780501833000,-529.0,0.00034527,2]
[423938003,1780501833000,-529.0,0.00034527,2]
[423937996,1780501833000,-501.0,0.000335,16]
[423938004,1780501833000,-529.0,0.00034527,2]
[423938006,1780501833000,-529.0,0.00034527,2]
[423938007,1780501833000,-529.0,0.00034527,2]
[423937999,1780501833000,-166.66,0.00034051,30]
[423938008,1780501833000,-529.0,0.00034527,2]
[423938001,1780501833000,-529.0,0.00034527,2]
[423937998,1780501833000,-934.44322521,0.00034026,2]
[423937987,1780501833000,-379.8925113,0.00032468,2]
[423937992,1780501833000,-355.25,0.00032898,120]
[423937989,1780501833000,-592.14,0.00032529,120]
[423937991,1780501833000,-166.66,0.00032703,30]
[423937993,1780501833000,-697.36,0.000331,120]
[423937990,1780501833000,-443.38,0.00032665,2]
[423937988,1780501833000,-164.0,0.00032525,30]
[423937986,1780501833000,-934.44322521,0.00032468,2]
[423937995,1780501833000,-166.66,0.00033377,30]
[423937994,1780501833000,-431.65,0.00033345,14]
[423938009,1780501833000,-529.0,0.00034527,2]
[423937997,1780501833000,-179.34,0.00033655,2]
[423938005,1780501833000,-529.0,0.00034527,2]
[423938016,1780501833000,-529.0,0.00034527,2]
[423938011,1780501833000,-529.0,0.00034527,2]
[423938034,1780501833000,-2745.62887176,0.00035,7]
[423938031,1780501833000,-150.0,0.00034915,7]
[423938029,1780501833000,-150.0,0.00034915,7]
[423938030,1780501833000,-150.0,0.00034915,7]
[423938028,1780501833000,-150.0,0.00034915,7]
[423938032,1780501833000,-159.1,0.00034956,2]
[423938027,1780501833000,-150.0,0.00034915,7]
[423938012,1780501833000,-529.0,0.00034527,2]
[423938022,1780501833000,-529.0,0.00034527,2]
[423938017,1780501833000,-529.0,0.00034527,2]
[423938024,1780501833000,-540.40704097,0.00034527,2]
[423938033,1780501833000,-3334.26,0.00035,2]
[423938023,1780501833000,-529.0,0.00034527,2]
[423938010,1780501833000,-529.0,0.00034527,2]
[423938021,1780501833000,-529.0,0.00034527,2]
[423938015,1780501833000,-529.0,0.00034527,2]
[423938025,1780501833000,-166.66,0.00034726,30]
[423938026,1780501833000,-1500.0,0.000349,7]
[423938013,1780501833000,-529.0,0.00034527,2]
[423938018,1780501833000,-529.0,0.00034527,2]
[423938020,1780501833000,-529.0,0.00034527,2]
[423938019,1780501833000,-529.0,0.00034527,2]
[423938014,1780501833000,-529.0,0.00034527,2]
[423938044,1780501834000,-300.0,0.00035147,2]
[423938035,1780501834000,-480.07323018,0.00035,7]
[423938037,1780501834000,-1534.72858893,0.00035,3]
[423938039,1780501834000,-300.0,0.00035147,2]
[423938036,1780501834000,-108.55789806,0.00035,7]
[423938040,1780501834000,-309.92888077,0.00035147,2]
[423938043,1780501834000,-300.0,0.00035147,2]
[423938041,1780501834000,-475.6472525,0.00035147,2]
[423938042,1780501834000,-493.7470866,0.00035147,2]
[423938038,1780501834000,-1799.53141107,0.00035,3]
[423938050,1780501834000,-1025.51146445,0.00035147,2]
[423938045,1780501834000,-605.74795988,0.00035147,2]
[423938055,1780501834000,-225.24428584,0.00035147,2]
[423938054,1780501834000,-426.23250486,0.00035147,2]
[423938053,1780501834000,-301.39674831,0.00035147,2]
[423938052,1780501834000,-535.16281429,0.00035147,2]
[423938049,1780501834000,-300.0,0.00035147,2]
[423938046,1780501834000,-383.70241456,0.00035147,2]
[423938047,1780501834000,-21.99389059,0.00035147,2]
[423938048,1780501834000,-278.00610941,0.00035147,2]
[423938051,1780501834000,-43.74590735,0.00035147,2]
[423938083,1780501838000,-528.02227468,0.00035147,2]
[423938086,1780501838000,-951.04579751,0.00035147,2]
[423938087,1780501838000,-426.59525417,0.00035147,2]
[423938085,1780501838000,-866.23745934,0.00035147,2]
[423938092,1780501838000,-225.50630674,0.00035147,2]
[423938093,1780501838000,-74.49369326,0.00035147,2]
[423938091,1780501838000,-409.50450497,0.00035147,2]
[423938094,1780501838000,-1147.95976809,0.00035147,2]
[423938095,1780501838000,-310.27200338,0.00035147,2]
[423938099,1780501838000,-300.0,0.00035147,2]
[423938097,1780501838000,-300.0,0.00035147,2]
[423938096,1780501838000,-1637.05552105,0.00035147,2]
[423938101,1780501838000,-300.0,0.00035147,2]
[423938088,1780501838000,-564.78289439,0.00035147,2]
[423938100,1780501838000,-464.83940927,0.00035147,2]
[423938103,1780501838000,-300.0,0.00035147,2]
[423938115,1780501838000,-1097.2542893,0.00035147,2]
[423938117,1780501838000,-300.0,0.00035147,2]
[423938102,1780501838000,-452.88299232,0.00035147,2]
[423938104,1780501838000,-300.0,0.00035147,2]
[423938098,1780501838000,-595.24492562,0.00035147,2]
[423938084,1780501838000,-300.0,0.00035147,2]
[423938080,1780501838000,-541.26276201,0.00035147,2]
[423938082,1780501838000,-344.69425509,0.00035147,2]
[423938062,1780501838000,-200.0,0.00026322,2]
[423938064,1780501838000,-200.0,0.00027884,2]
[423938061,1780501838000,-200.0,0.00025541,2]
[423938063,1780501838000,-200.0,0.00027103,2]
[423938065,1780501838000,-200.0,0.00028665,2]
[423938067,1780501838000,-175.9544774,0.00030137,40]
[423938068,1780501838000,-379.8925113,0.00034026,2]
[423938066,1780501838000,-7.37915593,0.00030137,40]
[423938069,1780501838000,-74.75571416,0.00035147,2]
[423938071,1780501838000,-300.0,0.00035147,2]
[423938081,1780501838000,-300.0,0.00035147,2]
[423938070,1780501838000,-302.43943065,0.00035147,2]
[423938073,1780501838000,-300.0,0.00035147,2]
[423938076,1780501838000,-76.71892021,0.00035147,2]
[423938077,1780501838000,-223.28107979,0.00035147,2]
[423938078,1780501838000,-300.0,0.00035147,2]
[423938075,1780501838000,-300.0,0.00035147,2]
[423938074,1780501838000,-300.0,0.00035147,2]
[423938079,1780501838000,-723.60747621,0.00035147,2]
[423938111,1780501838000,-300.00000001,0.00035147,2]
[423938089,1780501838000,-312.03666516,0.00035147,2]
[423938090,1780501838000,-497.67173558,0.00035147,2]
[423938072,1780501838000,-301.21296963,0.00035147,2]
[423938109,1780501838000,-300.0,0.00035147,2]
[423938113,1780501838000,-300.0,0.00035147,2]
[423938105,1780501838000,-300.0,0.00035147,2]
[423938146,1780501838000,-528.02227468,0.00035147,2]
[423938157,1780501838000,-382.32719749,0.00035147,2]
[423938158,1780501838000,-1147.95976809,0.00035147,2]
[423938160,1780501838000,-310.27200338,0.00035147,2]
[423938148,1780501838000,-300.0,0.00035147,2]
[423938150,1780501838000,-866.23745934,0.00035147,2]
[423938162,1780501838000,-1637.05552105,0.00035147,2]
[423938164,1780501838000,-300.00000001,0.00035147,2]
[423938154,1780501838000,-1801.0865493,0.00035147,2]
[423938107,1780501838000,-485.1720864,0.00035147,2]
[423938168,1780501838000,-300.0,0.00035147,2]
[423938182,1780501838000,-469.90659361,0.00035147,2]
[423938170,1780501838000,-464.83940927,0.00035147,2]
[423938172,1780501838000,-300.0,0.00035147,2]
[423938174,1780501838000,-452.88299232,0.00035147,2]
[423938187,1780501838000,-310.52286317,0.00035147,2]
[423938178,1780501838000,-300.0,0.00035147,2]
[423938176,1780501838000,-300.0,0.00035147,2]
[423938180,1780501838000,-300.0,0.00035147,2]
[423938185,1780501838000,-485.1720864,0.00035147,2]
[423938189,1780501838000,-300.0,0.00035147,2]
[423938144,1780501838000,-344.69425509,0.00035147,2]
[423938133,1780501838000,-301.21296963,0.00035147,2]
[423938166,1780501838000,-595.24492562,0.00035147,2]
[423938136,1780501838000,-521.4750258,0.00035147,2]
[423938137,1780501838000,-300.0,0.00035147,2]
[423938106,1780501838000,-300.0,0.00035147,2]
[423938108,1780501838000,-310.52286317,0.00035147,2]
[423938118,1780501838000,-300.0,0.00035147,2]
[423938120,1780501838000,-300.0,0.00035147,2]
[423938119,1780501838000,-300.0,0.00035147,2]
[423938125,1780501838000,-300.0,0.00035147,2]
[423938123,1780501838000,-300.0,0.00035147,2]
[423938122,1780501838000,-300.0,0.00035147,2]
[423938121,1780501838000,-493.7470866,0.00035147,2]
[423938124,1780501838000,-605.74795988,0.00035147,2]
[423938152,1780501838000,-951.04579751,0.00035147,2]
[423938128,1780501838000,-535.16281429,0.00035147,2]
[423938126,1780501838000,-300.0,0.00035147,2]
[423938134,1780501838000,-300.0,0.00035147,2]
[423938140,1780501838000,-1264.87023822,0.00035147,2]
[423938135,1780501838000,-300.0,0.00035147,2]
[423938132,1780501838000,-300.0,0.00035147,2]
[423938142,1780501838000,-389.58268942,0.00035147,2]
[423938138,1780501838000,-311.82912792,0.00035147,2]
[423938131,1780501838000,-302.43943065,0.00035147,2]
[423938129,1780501838000,-727.62925317,0.00035147,2]
[423938127,1780501838000,-1069.2573718,0.00035147,2]
[423938130,1780501838000,-443.39269567,0.00035147,2]
[423938239,1780501839000,-451.82327587,0.000369,120]
[423938220,1780501839000,-150.0,0.00035885,7]
[423938230,1780501839000,-2966.0,0.000364,30]
[423938237,1780501839000,-151.0,0.000369,4]
[423938226,1780501839000,-940.7,0.000359,120]
[423938228,1780501839000,-396.74156502,0.00036125,120]
[423938222,1780501839000,-355.25,0.00035889,120]
[423938235,1780501839000,-64.70323102,0.00036855,7]
[423938224,1780501839000,-151.0,0.000359,4]
[423938218,1780501839000,-169.62,0.0003588,30]
[423938216,1780501839000,-152.0,0.00035842,4]
[423938210,1780501839000,-592.14,0.00035486,120]
[423938212,1780501839000,-934.44322521,0.00035584,2]
[423938201,1780501839000,-300.0,0.00035147,2]
[423938214,1780501839000,-1543.87,0.00035616,30]
[423938197,1780501839000,-493.7470866,0.00035147,2]
[423938203,1780501839000,-179.24191387,0.0003517,47]
[423938205,1780501839000,-500.0,0.00035265,120]
[423938199,1780501839000,-300.0,0.00035147,2]
[423938195,1780501839000,-300.0,0.00035147,2]
[423938193,1780501839000,-1097.2542893,0.00035147,2]
[423938232,1780501839000,-85.29676898,0.00036855,7]
[423938207,1780501839000,-166.66,0.000354,30]
[423938191,1780501839000,-300.0,0.00035147,2]
[423938244,1780501839000,-179.55279795,0.000369,120]
[423938248,1780501839000,-198.91423056,0.00037,30]
[423938292,1780501839000,-1123.97488347,0.00037922,2]
[423938289,1780501839000,-900.0,0.000379,13]
[423938287,1780501839000,-940.5,0.000379,120]
[423938294,1780501839000,-333310.94487636,0.00037929,13]
[423938285,1780501839000,-208.45807121,0.000379,4]
[423938283,1780501839000,-150.0,0.00037825,7]
[423938281,1780501839000,-1000.0,0.000378,120]
[423938279,1780501839000,-1000.0,0.000377,120]
[423938277,1780501839000,-161.20015935,0.00037682,2]
[423938275,1780501839000,-182.40916939,0.000376,30]
[423938254,1780501839000,-1275.722,0.0003714,2]
[423938241,1780501839000,-309.12392618,0.000369,120]
[423938265,1780501839000,-178.75,0.000372,30]
[423938273,1780501839000,-2966.0,0.000376,30]
[423938267,1780501839000,-230.3544251,0.000372,120]
[423938263,1780501839000,-169.62,0.0003716,60]
[423938269,1780501839000,-164.373286,0.00037329,18]
[423938256,1780501839000,-119.60824752,0.00037142,2]
[423938260,1780501839000,-1000.0,0.0003715,120]
[423938258,1780501839000,-814.83497769,0.00037142,2]
[423938252,1780501839000,-364.0800082,0.00037095,14]
[423938250,1780501839000,-198.91423056,0.00037,30]
[423938246,1780501839000,-198.91423058,0.00037,30]
[423938271,1780501839000,-500.0,0.00037451,60]
[423938494,1780501840000,-1600.0,0.000384,14]
[423938485,1780501840000,-5267.0,0.00038356,120]
[423938483,1780501840000,-1300.0,0.000383,13]
[423938496,1780501840000,-1144.32569,0.0003841,101]
[423938501,1780501840000,-169.62,0.0003845,105]
[423938498,1780501840000,-390.25,0.00038412,60]
[423938490,1780501840000,-514.08,0.00038394,2]
[423938511,1780501840000,-2000.0,0.000386,7]
[423938487,1780501840000,-166.824,0.00038356,2]
[423938492,1780501840000,-5273.67369,0.000384,2]
[423938481,1780501840000,-613.71,0.00038276,60]
[423938472,1780501840000,-2441.0,0.00038,120]
[423938479,1780501840000,-487.99,0.00038276,60]
[423938476,1780501840000,-500.0,0.0003826,120]
[423938474,1780501840000,-151.0,0.00038229,2]
[423938473,1780501840000,-1301.42140915,0.00038051,10]
[423938468,1780501840000,-11417.26590848,0.00037929,13]
[423938456,1780501840000,-605.74795988,0.00035147,2]
[423938465,1780501840000,-265.84305539,0.00037929,13]
[423938463,1780501840000,-468.00615977,0.00037929,13]
[423938461,1780501840000,-379.8925113,0.00035584,2]
[423938458,1780501840000,-300.0,0.00035147,2]
[423938513,1780501840000,-300.0,0.000386,14]
[423938477,1780501840000,-500.0,0.00038273,60]
[423938515,1780501840000,-1144.3257,0.0003861,104]
[423938471,1780501840000,-447.091528,0.00038,14]
[423938507,1780501840000,-300.0,0.000385,14]
[423938517,1780501840000,-569.25239465,0.00038658,120]
[423938558,1780501840000,-404.42046659,0.0003875,2]
[423938556,1780501840000,-342.77089928,0.0003875,2]
[423938561,1780501840000,-618.28,0.00038751,2]
[423938563,1780501840000,-3179.4974041,0.00038762,2]
[423938552,1780501840000,-3055.441,0.0003875,120]
[423938554,1780501840000,-1924.56864816,0.0003875,2]
[423938549,1780501840000,-5555.0,0.0003875,120]
[423938545,1780501840000,-1144.32569,0.0003871,105]
[423938543,1780501840000,-300.0,0.000387,14]
[423938541,1780501840000,-342.77089928,0.000387,2]
[423938539,1780501840000,-1924.56864817,0.000387,2]
[423938547,1780501840000,-5555.0,0.0003875,120]
[423938530,1780501840000,-3117.32109297,0.000387,120]
[423938532,1780501840000,-606.63069991,0.000387,2]
[423938534,1780501840000,-90207.21164624,0.000387,120]
[423938503,1780501840000,-161.68710682,0.00038466,60]
[423938526,1780501840000,-1625.0,0.0003869,5]
[423938528,1780501840000,-179.24191387,0.000387,57]
[423938521,1780501840000,-163.0,0.0003868,120]
[423938524,1780501840000,-2025.0,0.0003869,5]
[423938509,1780501840000,-1144.32569,0.0003851,102]
[423938519,1780501840000,-475.0,0.00038662,25]
[423938536,1780501840000,-404.4204666,0.000387,2]
[423938505,1780501840000,-200.0,0.0003848,20]
[423938637,1780501841000,-151.0,0.00038799,120]
[423938631,1780501841000,-520.0,0.00038799,120]
[423938641,1780501841000,-200.0,0.00038799,120]
[423938633,1780501841000,-200.0,0.00038799,120]
[423938639,1780501841000,-539.24,0.00038799,120]
[423938643,1780501841000,-500.0,0.00038799,120]
[423938627,1780501841000,-2000.0,0.00038799,119]
[423938629,1780501841000,-200.0,0.00038799,120]
[423938635,1780501841000,-500.0,0.00038799,120]
[423938625,1780501841000,-2000.0,0.00038799,24]
[423938645,1780501841000,-500.0,0.00038799,120]
[423938649,1780501841000,-507.17324301,0.00038799,120]
[423938669,1780501841000,-151.0,0.00038799,120]
[423938651,1780501841000,-151.0,0.00038799,120]
[423938653,1780501841000,-200.0,0.00038799,120]
[423938655,1780501841000,-500.0,0.00038799,120]
[423938657,1780501841000,-500.0,0.00038799,120]
[423938665,1780501841000,-200.0,0.00038799,120]
[423938667,1780501841000,-500.0,0.00038799,120]
[423938659,1780501841000,-151.0,0.00038799,120]
[423938661,1780501841000,-500.0,0.00038799,120]
[423938673,1780501841000,-500.0,0.00038799,120]
[423938623,1780501841000,-2000.0,0.00038799,120]
[423938663,1780501841000,-151.0,0.00038799,120]
[423938671,1780501841000,-518.5,0.00038799,120]
[423938647,1780501841000,-151.0,0.00038799,120]
[423938619,1780501841000,-500.0,0.00038799,120]
[423938596,1780501841000,-566.68641641,0.00038799,30]
[423938607,1780501841000,-500.0,0.00038799,120]
[423938675,1780501841000,-151.0,0.00038799,120]
[423938567,1780501841000,-166.79,0.0003877,54]
[423938571,1780501841000,-199.30801849,0.0003879,2]
[423938569,1780501841000,-500.0,0.0003879,2]
[423938565,1780501841000,-3204.1908577,0.00038769,2]
[423938573,1780501841000,-199.30801849,0.0003879,2]
[423938575,1780501841000,-199.30801849,0.0003879,2]
[423938577,1780501841000,-199.78340403,0.00038795,7]
[423938581,1780501841000,-150.0,0.00038795,7]
[423938579,1780501841000,-211.39355754,0.00038795,7]
[423938583,1780501841000,-151.0,0.00038797,14]
[423938585,1780501841000,-500.0,0.00038798,120]
[423938588,1780501841000,-2000.0,0.00038798,30]
[423938590,1780501841000,-692.06864134,0.00038798,7]
[423938599,1780501841000,-500.0,0.00038799,120]
[423938594,1780501841000,-213.04687367,0.00038799,10]
[423938592,1780501841000,-300.0,0.00038799,10]
[423938598,1780501841000,-500.0,0.00038799,120]
[423938600,1780501841000,-500.0,0.00038799,120]
[423938613,1780501841000,-500.0,0.00038799,120]
[423938615,1780501841000,-500.0,0.00038799,120]
[423938621,1780501841000,-544.68,0.00038799,120]
[423938601,1780501841000,-500.0,0.00038799,120]
[423938609,1780501841000,-500.0,0.00038799,120]
[423938603,1780501841000,-500.0,0.00038799,120]
[423938617,1780501841000,-500.0,0.00038799,120]
[423938605,1780501841000,-500.0,0.00038799,120]
[423938611,1780501841000,-500.0,0.00038799,120]
[423938678,1780501841000,-317.96614597,0.00038799,120]
[423938690,1780501841000,-500.0,0.00038799,120]
[423938682,1780501841000,-151.0,0.00038799,120]
[423938740,1780501841000,-500.0,0.00038799,120]
[423938750,1780501841000,-500.0,0.00038799,120]
[423938742,1780501841000,-500.0,0.00038799,120]
[423938753,1780501841000,-151.0,0.00038799,120]
[423938755,1780501841000,-500.0,0.00038799,120]
[423938758,1780501841000,-500.0,0.00038799,120]
[423938762,1780501841000,-151.0,0.00038799,120]
[423938774,1780501841000,-500.0,0.00038799,120]
[423938764,1780501841000,-500.0,0.00038799,120]
[423938760,1780501841000,-151.0,0.00038799,120]
[423938768,1780501841000,-151.0,0.00038799,120]
[423938770,1780501841000,-500.0,0.00038799,120]
[423938748,1780501841000,-500.0,0.00038799,120]
[423938766,1780501841000,-500.0,0.00038799,120]
[423938772,1780501841000,-151.0,0.00038799,120]
[423938778,1780501841000,-500.0,0.00038799,120]
[423938780,1780501841000,-151.0,0.00038799,120]
[423938782,1780501841000,-500.0,0.00038799,120]
[423938786,1780501841000,-500.0,0.00038799,120]
[423938784,1780501841000,-196.45719837,0.00038799,120]
[423938788,1780501841000,-151.0,0.00038799,120]
[423938798,1780501841000,-151.0,0.00038799,120]
[423938790,1780501841000,-500.0,0.00038799,120]
[423938792,1780501841000,-500.0,0.00038799,120]
[423938794,1780501841000,-151.0,0.00038799,120]
[423938679,1780501841000,-500.0,0.00038799,120]
[423938776,1780501841000,-151.0,0.00038799,120]
[423938751,1780501841000,-151.0,0.00038799,120]
[423938796,1780501841000,-500.0,0.00038799,120]
[423938746,1780501841000,-151.0,0.00038799,120]
[423938734,1780501841000,-500.0,0.00038799,120]
[423938683,1780501841000,-500.0,0.00038799,120]
[423938693,1780501841000,-151.0,0.00038799,120]
[423938695,1780501841000,-428.11458325,0.00038799,120]
[423938686,1780501841000,-537.6845,0.00038799,120]
[423938697,1780501841000,-151.0,0.00038799,120]
[423938699,1780501841000,-500.0,0.00038799,120]
[423938691,1780501841000,-500.0,0.00038799,120]
[423938688,1780501841000,-151.0,0.00038799,120]
[423938701,1780501841000,-151.0,0.00038799,120]
[423938705,1780501841000,-151.0,0.00038799,120]
[423938720,1780501841000,-151.0,0.00038799,120]
[423938718,1780501841000,-500.0,0.00038799,120]
[423938703,1780501841000,-500.0,0.00038799,120]
[423938707,1780501841000,-500.0,0.00038799,120]
[423938744,1780501841000,-151.0,0.00038799,120]
[423938738,1780501841000,-151.0,0.00038799,120]
[423938736,1780501841000,-151.0,0.00038799,120]
[423938724,1780501841000,-500.0,0.00038799,120]
[423938730,1780501841000,-151.0,0.00038799,120]
[423938716,1780501841000,-500.0,0.00038799,120]
[423938732,1780501841000,-500.0,0.00038799,120]
[423938709,1780501841000,-151.0,0.00038799,120]
[423938728,1780501841000,-151.0,0.00038799,120]
[423938714,1780501841000,-151.0,0.00038799,120]
[423938726,1780501841000,-500.0,0.00038799,120]
[423938722,1780501841000,-151.0,0.00038799,120]
[423938711,1780501841000,-500.0,0.00038799,120]
[423938843,1780501842000,-150.0,0.000388,119]
[423938826,1780501842000,-500.0,0.00038799,120]
[423938828,1780501842000,-500.0,0.00038799,120]
[423938830,1780501842000,-151.0,0.00038799,120]
[423938834,1780501842000,-151.0,0.00038799,120]
[423938836,1780501842000,-6898.73211925,0.000388,24]
[423938838,1780501842000,-250.0,0.000388,30]
[423938850,1780501842000,-897.82702399,0.000388,120]
[423938832,1780501842000,-500.0,0.00038799,120]
[423938852,1780501842000,-2847.10979599,0.000388,120]
[423938840,1780501842000,-150.0,0.000388,119]
[423938847,1780501842000,-12955.40241671,0.000388,120]
[423938857,1780501842000,-949.32884409,0.000388,120]
[423938855,1780501842000,-6746.22981931,0.000388,120]
[423938860,1780501842000,-2365.275,0.000388,120]
[423938862,1780501842000,-2511.0,0.000388,120]
[423938865,1780501842000,-1844.09,0.000388,120]
[423938867,1780501842000,-7111.1,0.000388,120]
[423938845,1780501842000,-426097.78084223,0.000388,120]
[423938991,1780501843000,-1069.2573718,0.00035147,2]
[423938993,1780501843000,-1132.3,0.0003869,10]
[423938997,1780501843000,-2145.67805224,0.000388,120]
[423938995,1780501843000,-934.44322521,0.000387,2]
[423939000,1780501843000,-586.60328056,0.000388,120]
[423939002,1780501843000,-2618.60797408,0.000388,120]
[423939004,1780501843000,-3287.4508748,0.000388,120]
[423938989,1780501843000,-300.0,0.00035147,2]
[423939013,1780501843000,-500.0,0.00024678,2]
[423939010,1780501843000,-6701.27338592,0.000388,120]
[423939016,1780501843000,-1229185.60000672,0.000388,120]
[423939018,1780501843000,-602412.29738482,0.000388,120]
[423939035,1780501843000,-4144.52586934,0.000388,120]
[423938987,1780501843000,-500.0,0.00024678,2]
[423939335,1780501845000,-500.0,0.00024678,2]
[423939338,1780501845000,-487.899,0.00024678,2]
[423939336,1780501845000,-500.0,0.00024678,2]
[423939337,1780501845000,-500.0,0.00024678,2]
[423939345,1780501846000,-12.101,0.00024678,2]
[423939347,1780501846000,-535.16281429,0.00035147,2]
[423939351,1780501846000,-500.0,0.00038798,7]
[423939348,1780501846000,-727.62925317,0.00035147,2]
[423939353,1780501846000,-533.09,0.00038799,7]
[423939349,1780501846000,-379.8925113,0.00037142,2]
[423939354,1780501846000,-10549.75622124,0.000388,120]
[423939356,1780501846000,-2339.33590449,0.000388,120]
[423939357,1780501846000,-280.8057185,0.000388,120]
[423939358,1780501846000,-330.705,0.000388,120]
[423939359,1780501846000,-552.76,0.000388,120]
[423939352,1780501846000,-500.0,0.00038799,7]
[423939369,1780502156000,-504.0,0.00018,2]
[423939372,1780502209000,-286.3285255,0.0002301,2]
[423939373,1780502224000,-213.6714745,0.0002301,2]
[423939374,1780502277000,-302.43943065,0.0002301,2]
[423939375,1780502292000,-197.56056935,0.0002301,2]
[423939376,1780502345000,-300.0,0.00018,2]
[423939377,1780502360000,-204.0,0.00018,2]